bitfinex/quotes_BTCUSD_20250830
["timestamp","ask_amount","ask_price","bid_price","bid_amount"]
[1756551615714,0.30656191,108660.0,108650.0,0.18407731]
[1756551615929,0.30656191,108660.0,108650.0,0.18916731]
[1756551616733,0.30756191,108660.0,108650.0,0.18916731]
[1756551616955,0.30660954,108660.0,108650.0,0.18916731]
[1756551617162,0.30760954,108660.0,108650.0,0.18916731]
[1756551617362,0.01047284,108660.0,108650.0,0.21072422]
[1756551617569,0.00947284,108660.0,108650.0,0.21072422]
[1756551617951,0.00947284,108660.0,108650.0,0.28414732]
[1756551618364,4.763e-05,108660.0,108650.0,0.28414732]
[1756551618939,0.00913053,108660.0,108650.0,0.28414732]
[1756551619345,0.49205981,108660.0,108650.0,0.10007001]
[1756551619618,0.30799944,108660.0,108650.0,0.43217732]
[1756551619812,0.30799944,108660.0,108650.0,0.43717732]
[1756551620655,0.30799944,108660.0,108650.0,0.46484732]
[1756551622764,0.49205981,108660.0,108650.0,0.46484732]
[1756551623161,0.1951709,108660.0,108650.0,0.31172732]
[1756551623363,0.49205981,108660.0,108650.0,0.46480732]
[1756551623783,0.30799944,108660.0,108650.0,0.46480732]
[1756551623985,0.00913053,108660.0,108650.0,0.46480732]
[1756551624245,0.30601944,108660.0,108650.0,0.46480732]
[1756551625917,4.763e-05,108660.0,108650.0,0.52969748]
[1756551626753,0.00928062,108660.0,108650.0,0.52969748]
[1756551626967,4.763e-05,108660.0,108650.0,0.52969748]
[1756551627216,0.29688891,108660.0,108650.0,0.52969748]
[1756551630478,0.29688891,108660.0,108650.0,0.46480732]
[1756551634306,0.1926966,108670.0,108660.0,0.18406037]
[1756551634519,0.48958551,108670.0,108660.0,0.18419244]
[1756551634730,0.49157551,108670.0,108660.0,0.18419244]
[1756551634950,0.49157551,108670.0,108660.0,0.00013207]
[1756551635156,0.50870822,108670.0,108660.0,0.15321207]
[1756551635371,0.51119822,108670.0,108660.0,0.15321207]
[1756551636387,0.49406551,108670.0,108660.0,0.15321207]
[1756551636597,0.51120454,108670.0,108660.0,0.15321207]
[1756551637445,0.50971454,108670.0,108660.0,0.15321207]
[1756551638715,0.21282563,108670.0,108660.0,0.15321207]
[1756551638913,0.50971454,108670.0,108660.0,0.15321207]
[1756551640960,0.51220454,108670.0,108660.0,0.15321207]
[1756551641572,0.50971454,108670.0,108660.0,0.15321207]
[1756551645281,0.51617566,108670.0,108660.0,0.15321207]
[1756551646635,0.51617566,108670.0,108660.0,0.00013207]
[1756551646892,0.51617566,108670.0,108660.0,0.15317207]
[1756551647327,0.49257551,108670.0,108660.0,0.15317207]
[1756551647535,0.51626765,108670.0,108660.0,0.15317207]
[1756551647896,0.51626753,108670.0,108660.0,0.15317207]
[1756551651323,0.81322098,108670.0,108660.0,0.15317207]
[1756551657999,0.80675931,108670.0,108660.0,0.15317207]
[1756551659600,1.05704704,108670.0,108660.0,0.00013207]
[1756551659771,1.01549435,108670.0,108660.0,0.00013207]
[1756551660775,1.65241553,108670.0,108660.0,0.00013207]
[1756551660981,1.67715375,108670.0,108660.0,0.00013207]
[1756551661189,1.67715282,108670.0,108660.0,0.00013207]
[1756551661399,1.6524146,108670.0,108660.0,0.00013207]
[1756551661622,1.76838392,108670.0,108660.0,0.00013207]
[1756551661821,1.47146274,108670.0,108660.0,0.00013207]
[1756551662274,1.23089057,108670.0,108660.0,0.00013207]
[1756551662479,1.41497211,108670.0,108660.0,0.00013207]
[1756551662688,1.32667579,108670.0,108660.0,0.00013207]
[1756551663329,1.29978102,108670.0,108660.0,0.00013207]
[1756551664157,1.29977301,108670.0,108660.0,0.00013207]
[1756551665043,1.30899724,108670.0,108660.0,0.00013207]
[1756551665690,1.7257932,108670.0,108660.0,0.00013207]
[1756551665907,1.81408952,108670.0,108660.0,0.00013207]
[1756551666122,1.83801439,108670.0,108660.0,0.00013207]
[1756551667627,1.84596708,108670.0,108660.0,0.00013207]
[1756551667825,1.85241248,108670.0,108660.0,0.00013207]
[1756551668028,1.85741248,108670.0,108660.0,0.00013207]
[1756551668447,1.85741093,108670.0,108660.0,0.00013207]
[1756551669493,1.53688616,108670.0,108660.0,0.00013207]
[1756551674486,1.55405539,108670.0,108660.0,0.00013207]
[1756551676698,1.42618061,108670.0,108660.0,0.00013207]
[1756551676905,1.57946061,108670.0,108660.0,0.00013207]
[1756551678326,1.56228568,108670.0,108660.0,0.00013207]
[1756551678533,1.57945413,108670.0,108660.0,0.00013207]
[1756551678918,1.57945415,108670.0,108660.0,0.00013207]
[1756551685096,1.60419237,108670.0,108660.0,0.00013207]
[1756551685940,1.60419237,108670.0,108660.0,0.00321207]
[1756551689001,1.58703495,108670.0,108660.0,0.00321207]
[1756551689174,1.48398343,108670.0,108660.0,0.00321207]
[1756551689425,1.63718343,108670.0,108660.0,0.00321207]
[1756551689625,1.30707467,108670.0,108660.0,0.00523207]
[1756551689776,1.21877835,108670.0,108660.0,0.00523207]
[1756551690106,1.21877844,108670.0,108660.0,0.00523207]
[1756551690950,1.06557844,108670.0,108660.0,0.00523207]
[1756551691159,1.21877844,108670.0,108660.0,0.00523207]
[1756551691375,1.51568484,108670.0,108660.0,0.00523207]
[1756551692023,1.60398116,108670.0,108660.0,0.00523207]
[1756551692194,1.57708639,108670.0,108660.0,0.00523207]
[1756551693343,1.63701178,108670.0,108660.0,0.00523207]
[1756551693584,1.63701178,108670.0,108660.0,0.00321207]
[1756551696171,1.63701178,108670.0,108660.0,0.00013207]
[1756551696846,1.63701178,108670.0,108660.0,0.00321207]
[1756551699857,1.63703817,108670.0,108660.0,0.00321207]
[1756551700398,1.6370382,108670.0,108660.0,0.00321207]
[1756551701228,1.6369582,108670.0,108660.0,0.00321207]
[1756551704093,1.61710934,108670.0,108660.0,0.00321207]
[1756551704313,1.59237112,108670.0,108660.0,0.00321207]
[1756551704899,1.5593405,108670.0,108660.0,0.00321207]
[1756551706485,1.59240035,108670.0,108660.0,0.00321207]
[1756551706853,1.63703115,108670.0,108660.0,0.00321207]
[1756551707059,1.59240035,108670.0,108660.0,0.00321207]
[1756551707260,1.5593405,108670.0,108660.0,0.00321207]
[1756551708663,1.63702599,108670.0,108660.0,0.00321207]
[1756551710380,1.61980569,108670.0,108660.0,0.00321207]
[1756551710615,1.63702423,108670.0,108660.0,0.00321207]
[1756551710858,1.93401834,108670.0,108660.0,0.00321207]
[1756551712663,2.00481834,108670.0,108660.0,0.00321207]
[1756551713668,1.9800251,108670.0,108660.0,0.00321207]
[1756551715610,2.0048184,108670.0,108660.0,0.00321207]
[1756551715950,1.9800251,108670.0,108660.0,0.00321207]
[1756551716210,2.0048184,108670.0,108660.0,0.00013207]
[1756551716448,1.9800251,108670.0,108660.0,0.00326207]
[1756551717006,1.9800251,108670.0,108660.0,0.00522207]
[1756551717639,1.9800251,108670.0,108660.0,0.00326207]
[1756551720047,1.9800251,108670.0,108660.0,0.00522207]
[1756551720478,1.8269051,108670.0,108660.0,0.00522207]
[1756551720697,1.89172878,108670.0,108660.0,0.00522207]
[1756551720907,1.86805329,108670.0,108660.0,0.00522207]
[1756551721112,1.89172927,108670.0,108660.0,0.00522207]
[1756551721566,1.89172887,108670.0,108660.0,0.00522207]
[1756551723265,1.73860887,108670.0,108660.0,0.00522207]
[1756551723436,1.56783999,108670.0,108660.0,0.00522207]
[1756551724046,1.95313042,108670.0,108660.0,0.00522207]
[1756551725846,1.98002519,108670.0,108660.0,0.00522207]
[1756551728522,2.00395013,108670.0,108660.0,0.00013207]
[1756551729558,1.98002519,108670.0,108660.0,0.00013207]
[1756551730558,1.63175861,108670.0,108660.0,0.00013207]
[1756551730782,1.63175797,108670.0,108660.0,0.00326207]
[1756551731169,1.63175517,108670.0,108660.0,0.00326207]
[1756551732671,1.97175517,108670.0,108660.0,0.00326207]
[1756551736539,1.97175376,108670.0,108660.0,0.00326207]
[1756551736859,1.73033744,108670.0,108660.0,0.00522207]
[1756551737077,1.56028856,108670.0,108660.0,0.00522207]
[1756551737954,1.56028892,108670.0,108660.0,0.00522207]
[1756551738164,1.53549784,108670.0,108660.0,0.00522207]
[1756551740587,1.56028892,108670.0,108660.0,0.00522207]
[1756551740819,1.56024892,108670.0,108660.0,0.00522207]
[1756551741616,1.56024429,108670.0,108660.0,0.00522207]
[1756551745425,1.64854061,108670.0,108660.0,0.00522207]
[1756551752302,1.64853612,108670.0,108660.0,0.00522207]
[1756551753709,1.5602398,108670.0,108660.0,0.00522207]
[1756551756916,1.56023957,108670.0,108660.0,0.00522207]
[1756551759654,1.56023973,108670.0,108660.0,0.00522207]
[1756551760300,1.56021926,108670.0,108660.0,0.00522207]
[1756551762945,1.56022073,108670.0,108660.0,0.00522207]
[1756551763551,1.64851705,108670.0,108660.0,0.00522207]
[1756551763757,1.64851732,108670.0,108660.0,0.00522207]
[1756551766518,1.64206761,108670.0,108660.0,0.00522207]
[1756551766743,1.64852283,108670.0,108660.0,0.00522207]
[1756551767521,1.55998651,108670.0,108660.0,0.00522207]
[1756551771273,1.55353129,108670.0,108660.0,0.00522207]
[1756551771476,1.85698077,108670.0,108660.0,0.00522207]
[1756551772947,1.55998666,108670.0,108660.0,0.00522207]
[1756551773739,1.55998747,108670.0,108660.0,0.00522207]
[1756551773964,1.55998763,108670.0,108660.0,0.00522207]
[1756551774365,1.55998754,108670.0,108660.0,0.00522207]
[1756551775547,1.97217274,108670.0,108660.0,0.00522207]
[1756551777847,1.97217274,108670.0,108660.0,0.00326207]
[1756551778904,1.97217249,108670.0,108660.0,0.00326207]
[1756551780855,1.97217257,108670.0,108660.0,0.00326207]
[1756551781637,1.81861257,108670.0,108660.0,0.00326207]
[1756551781837,1.97217257,108670.0,108660.0,0.00326207]
[1756551783488,1.94850256,108670.0,108660.0,0.00326207]
[1756551783733,1.97217064,108670.0,108660.0,0.00326207]
[1756551785683,2.0052283,108670.0,108660.0,0.00013207]
[1756551786550,2.0052283,108670.0,108660.0,0.00313207]
[1756551788945,1.97833353,108670.0,108660.0,0.00313207]
[1756551790568,1.96112038,108670.0,108660.0,0.00313207]
[1756551790736,1.97833469,108670.0,108660.0,0.00313207]
[1756551790937,1.97833469,108670.0,108660.0,0.00013207]
[1756551791154,2.00522946,108670.0,108660.0,0.00013207]
[1756551791387,0.18409425,108640.0,108630.0,0.0788109]
[1756551791587,0.79529678,108640.0,108630.0,0.17408379]
[1756551792435,0.79529678,108640.0,108630.0,0.14488771]
[1756551793267,0.79529678,108640.0,108630.0,0.14588771]
[1756551793498,0.79529678,108640.0,108630.0,0.14888771]
[1756551794168,0.77808247,108640.0,108630.0,0.14888771]
[1756551794422,0.7952992,108640.0,108630.0,0.14888771]
[1756551797908,0.79529923,108640.0,108630.0,0.14888771]
[1756551799946,0.88359555,108640.0,108630.0,0.14888771]
[1756551802867,0.79529923,108640.0,108630.0,0.14888771]
[1756551803104,0.20131101,108640.0,108630.0,0.14888771]
[1756551803250,0.79529923,108640.0,108630.0,0.14888771]
[1756551804886,0.77808247,108640.0,108630.0,0.14888771]
[1756551805075,0.79529895,108640.0,108630.0,0.14888771]
[1756551805872,0.79693905,108640.0,108630.0,0.14888771]
[1756551806804,0.79529905,108640.0,108630.0,0.14888771]
[1756551807221,0.77738152,108640.0,108630.0,0.14888771]
[1756551810293,0.77738152,108640.0,108630.0,0.03496888]
[1756551810514,1.6091009,108640.0,108630.0,0.00214288]
[1756551810727,1.57685006,108640.0,108630.0,0.00214288]
[1756551810950,1.60453006,108640.0,108630.0,0.00214288]
[1756551811184,1.30651595,108640.0,108630.0,0.00214288]
[1756551811407,1.30651595,108640.0,108630.0,0.00114288]
[1756551811670,1.30651595,108640.0,108630.0,0.00014288]
[1756551811906,1.30751595,108640.0,108630.0,0.00014288]
[1756551812154,1.30651595,108640.0,108630.0,0.00014288]
[1756551812388,1.30006152,108640.0,108630.0,0.00014288]
[1756551814407,0.1841112,108630.0,108620.0,0.0253973]
[1756551814664,0.65168189,108630.0,108620.0,0.02587367]
[1756551814859,0.65168189,108630.0,108620.0,0.00260637]
[1756551815304,0.67936189,108630.0,108620.0,0.00260637]
[1756551815780,0.67934343,108630.0,108620.0,0.00260637]
[1756551816433,0.67934343,108630.0,108620.0,0.00560637]
[1756551816682,0.67934343,108630.0,108620.0,0.00660637]
[1756551817254,0.67934343,108630.0,108620.0,0.00760637]
[1756551820814,0.52598343,108630.0,108620.0,0.00760637]
[1756551821908,0.52810343,108630.0,108620.0,0.00760637]
[1756551823920,0.52598343,108630.0,108620.0,0.00760637]
[1756551824186,0.04487812,108630.0,108620.0,0.19403612]
[1756551824395,0.49830343,108630.0,108620.0,0.19173452]
[1756551824564,0.48110531,108630.0,108620.0,0.19173452]
[1756551825027,0.48110531,108630.0,108620.0,0.00760637]
[1756551825952,0.48110531,108630.0,108620.0,0.03528637]
[1756551827665,0.48110531,108630.0,108620.0,0.21941452]
[1756551828095,0.48110531,108630.0,108620.0,0.03528637]
[1756551828342,0.48110531,108630.0,108620.0,0.03758797]
[1756551831709,0.48110531,108630.0,108620.0,0.36020613]
[1756551831976,0.29699411,108630.0,108620.0,0.37884335]
[1756551833724,0.09985836,108630.0,108620.0,0.37884335]
[1756551834532,0.28396956,108630.0,108620.0,0.37884335]
[1756551835379,0.1841112,108630.0,108620.0,0.37884335]
[1756551835604,0.48110531,108630.0,108620.0,0.37884335]
[1756551836112,0.1841112,108630.0,108620.0,0.37884335]
[1756551836325,0.48110531,108630.0,108620.0,0.37884335]
[1756551839449,0.1841112,108630.0,108620.0,0.67583746]
[1756551840270,0.1841112,108630.0,108620.0,0.37884335]
[1756551841417,0.48110531,108630.0,108620.0,0.37884335]
[1756551841868,0.48110531,108630.0,108620.0,0.1492052]
[1756551842081,0.50029172,108630.0,108620.0,0.3025252]
[1756551844338,0.20131761,108630.0,108620.0,0.48665335]
[1756551844557,0.49831172,108630.0,108620.0,0.48665335]
[1756551844978,0.50029172,108630.0,108620.0,0.48665335]
[1756551845637,0.50029172,108630.0,108620.0,0.3025252]
[1756551846277,0.50029172,108630.0,108620.0,0.2973552]
[1756551846715,0.2033001,108630.0,108620.0,0.2973552]
[1756551846999,0.50029421,108630.0,108620.0,0.2993952]
[1756551847206,0.50029436,108630.0,108620.0,0.3026152]
[1756551849540,0.20330025,108630.0,108620.0,0.3026152]
[1756551849704,0.50029436,108630.0,108620.0,0.3026152]
[1756551850331,0.50029594,108630.0,108620.0,0.3026152]
[1756551852750,0.50029594,108630.0,108620.0,0.3025752]
[1756551857324,0.50029844,108630.0,108620.0,0.3025752]
[1756551858813,0.50029844,108630.0,108620.0,0.48670335]
[1756551859275,0.49831844,108630.0,108620.0,0.48670335]
[1756551860915,0.49831848,108630.0,108620.0,0.48670335]
[1756551861585,0.50034848,108630.0,108620.0,0.2993552]
[1756551862357,0.50034848,108630.0,108620.0,0.2973152]
[1756551863788,0.50034848,108630.0,108620.0,0.1440752]
[1756551864091,0.50034848,108630.0,108620.0,0.2973152]
[1756551867503,0.20335437,108630.0,108620.0,0.2994652]
[1756551867642,0.50034848,108630.0,108620.0,0.3026852]
[1756551868048,0.50034875,108630.0,108620.0,0.3026852]
[1756551868450,0.48313531,108630.0,108620.0,0.3026852]
[1756551868648,0.50034914,108630.0,108620.0,0.3026852]
[1756551870347,0.50034914,108630.0,108620.0,0.1494452]
[1756551870684,0.50034914,108630.0,108620.0,0.3026852]
[1756551870860,0.50034914,108630.0,108620.0,0.1462252]
[1756551871073,0.50034914,108630.0,108620.0,0.2994652]
[1756551875147,0.50034914,108630.0,108620.0,0.1462252]
[1756551875349,0.50034914,108630.0,108620.0,0.2994652]
[1756551875915,0.29110449,108630.0,108620.0,0.3026852]
[1756551876135,0.47521569,108630.0,108620.0,0.3026852]
[1756551877630,0.48110531,108630.0,108620.0,0.3026852]
[1756551879035,0.48110531,108630.0,108620.0,0.2973152]
[1756551879241,0.1841112,108630.0,108620.0,0.2973152]
[1756551879487,0.48110531,108630.0,108620.0,0.3026852]
[1756551882919,0.48308531,108630.0,108620.0,0.3026852]
[1756551884607,0.48308531,108630.0,108620.0,0.1494452]
[1756551884842,0.48308531,108630.0,108620.0,0.3026852]
[1756551887056,0.25561243,108630.0,108620.0,0.3026852]
[1756551887242,0.43972363,108630.0,108620.0,0.3026852]
[1756551887901,0.45693762,108630.0,108620.0,0.3026852]
[1756551888153,0.45495762,108630.0,108620.0,0.3026852]
[1756551889410,0.43774363,108630.0,108620.0,0.3026852]
[1756551889623,0.45495747,108630.0,108620.0,0.3026852]
[1756551890061,0.45012213,108630.0,108620.0,0.3026852]
[1756551890594,0.49831915,108630.0,108620.0,0.3026852]
[1756551892547,0.50029915,108630.0,108620.0,0.3026852]
[1756551892765,0.50029915,108630.0,108620.0,0.1494452]
[1756551892951,0.50029915,108630.0,108620.0,0.2973152]
[1756551893397,0.50029915,108630.0,108620.0,0.3025152]
[1756551895790,0.20330504,108630.0,108620.0,0.3025152]
[1756551896109,0.50029915,108630.0,108620.0,0.48664335]
[1756551897684,0.20132504,108630.0,108620.0,0.48664335]
[1756551897889,0.49831915,108630.0,108620.0,0.48664335]
[1756551898687,0.50029915,108630.0,108620.0,0.48664335]
[1756551899444,0.50029852,108630.0,108620.0,0.48664335]
[1756551900305,0.50029858,108630.0,108620.0,0.48664335]
[1756551900513,0.01721327,108630.0,108620.0,0.48664335]
[1756551900736,0.01721327,108630.0,108620.0,0.78363746]
[1756551903457,0.01721327,108630.0,108620.0,0.48664335]
[1756551904077,0.20132447,108630.0,108620.0,0.48664335]
[1756551911281,0.49831858,108630.0,108620.0,0.48664335]
[1756551911702,0.20132447,108630.0,108620.0,0.78363746]
[1756551913723,0.20132447,108630.0,108620.0,0.48664335]
[1756551916068,0.49831858,108630.0,108620.0,0.48664335]
[1756551918911,0.20132447,108630.0,108620.0,0.48664335]
[1756551919122,0.49831858,108630.0,108620.0,0.48664335]
[1756551919969,0.20132447,108630.0,108620.0,0.48664335]
[1756551920485,0.20132752,108630.0,108620.0,0.48664335]
[1756551921996,0.49832163,108630.0,108620.0,0.48664335]
[1756551922240,0.20132752,108630.0,108620.0,0.48664335]
[1756551926128,0.49832163,108630.0,108620.0,0.48664335]
[1756551927396,0.20132752,108630.0,108620.0,0.48664335]
[1756551931087,0.2013299,108630.0,108620.0,0.48664335]
[1756551941788,0.1841112,108630.0,108620.0,0.48664335]
[1756551941990,0.20133168,108630.0,108620.0,0.48664335]
[1756551942633,0.20133122,108630.0,108620.0,0.48664335]
[1756551947563,0.49832533,108630.0,108620.0,0.48664335]
[1756551949020,0.49832492,108630.0,108620.0,0.48664335]
[1756551949226,0.20133081,108630.0,108620.0,0.48664335]
[1756551950263,0.1841112,108630.0,108620.0,0.48664335]
[1756551950692,0.93058546,108640.0,108620.0,0.48664335]
[1756551950978,0.29699411,108630.0,108620.0,0.48664335]
[1756551951155,0.29699411,108630.0,108620.0,0.45896335]
[1756551951352,0.48110531,108630.0,108620.0,0.45896335]
[1756551951891,0.48110531,108630.0,108620.0,0.48564035]
[1756551952066,0.48110531,108630.0,108620.0,0.48464035]
[1756551952999,0.29699411,108630.0,108620.0,0.48464035]
[1756551954632,0.29699411,108630.0,108620.0,0.48564035]
[1756551955104,0.93058546,108640.0,108620.0,0.48564035]
[1756551955300,0.29699411,108630.0,108620.0,0.48564035]
[1756551955756,0.29699411,108630.0,108620.0,0.45796335]
[1756551955967,0.29699411,108630.0,108620.0,0.48564035]
[1756551956667,0.77842546,108640.0,108620.0,0.48564035]
[1756551956898,0.77742546,108640.0,108620.0,0.48564035]
[1756551957119,0.93058546,108640.0,108620.0,0.45796335]
[1756551957567,0.93058546,108640.0,108630.0,0.027677]
[1756551957779,0.93256546,108640.0,108630.0,0.027677]
[1756551958866,0.93256546,108640.0,108630.0,0.03501839]
[1756551959280,0.78040546,108640.0,108630.0,0.03501839]
[1756551959486,0.93456546,108640.0,108630.0,0.03501839]
[1756551959908,0.93456546,108640.0,108630.0,0.33304842]
[1756551960146,0.93556546,108640.0,108630.0,0.14663583]
[1756551960357,0.93556546,108640.0,108630.0,0.14893722]
[1756551962498,0.95278264,108640.0,108630.0,0.14893722]
[1756551963679,0.79962264,108640.0,108630.0,0.14893722]
[1756551964330,0.02021718,108640.0,108630.0,0.70842012]
[1756551964531,0.003,108640.0,108630.0,0.70611873]
[1756551964699,0.003,108640.0,108630.0,0.77691873]
[1756551965321,0.64341753,108660.0,108650.0,0.20501613]
[1756551965527,0.64341753,108660.0,108650.0,0.45619614]
[1756551965528,0.49025753,108660.0,108650.0,0.45619614]
[1756551965729,0.49025753,108660.0,108650.0,0.46831457]
[1756551966178,0.49025753,108660.0,108650.0,0.49598557]
[1756551966358,0.49025753,108660.0,108650.0,0.48386714]
[1756551966938,0.49025753,108660.0,108650.0,0.48486714]
[1756551968465,0.49025753,108660.0,108650.0,0.33170714]
[1756551968690,0.49025753,108660.0,108650.0,0.48482714]
[1756551969135,0.49223753,108660.0,108650.0,0.48482714]
[1756551970214,0.49323753,108660.0,108650.0,0.48482714]
[1756551971391,0.49223753,108660.0,108650.0,0.48482714]
[1756551976811,0.49025753,108660.0,108650.0,0.48482714]
[1756551982165,0.19326342,108660.0,108650.0,0.48482714]
[1756551982377,0.49025753,108660.0,108650.0,0.48482714]
[1756551983233,0.36362296,108670.0,108650.0,0.48482714]
[1756551983429,0.29699411,108660.0,108650.0,0.48482714]
[1756551983632,0.29699411,108660.0,108650.0,0.45715614]
[1756551983997,0.29699411,108660.0,108650.0,0.48482714]
[1756551984202,0.48105448,108660.0,108650.0,0.48482714]
[1756551985176,0.48105448,108660.0,108650.0,0.48382714]
[1756551985371,0.48303448,108660.0,108650.0,0.48382714]
[1756551986041,0.48303448,108660.0,108650.0,0.48482714]
[1756551987215,0.18604037,108660.0,108650.0,0.48482714]
[1756551987426,0.48303448,108660.0,108650.0,0.48482714]
[1756551989410,0.78002859,108660.0,108650.0,0.48482714]
[1756551994669,0.7972534,108660.0,108650.0,0.48482714]
[1756551996764,1.2675884,108660.0,108650.0,0.48482714]
[1756551997768,1.2675884,108660.0,108650.0,0.48478714]
[1756551998383,1.25036359,108660.0,108650.0,0.48478714]
[1756552010407,1.24838359,108660.0,108650.0,0.48478714]
[1756552012828,1.06432322,108660.0,108650.0,0.48478714]
[1756552020666,0.76732911,108660.0,108650.0,0.48478714]
[1756552021469,0.470335,108660.0,108650.0,0.48478714]
[1756552021700,0.76732911,108660.0,108650.0,0.48478714]
[1756552022185,0.470335,108660.0,108650.0,0.48322993]
[1756552022415,0.470335,108660.0,108650.0,0.78022404]
[1756552023490,0.470335,108660.0,108650.0,0.77922404]
[1756552025263,0.470335,108660.0,108650.0,0.78122404]
[1756552025895,0.470335,108660.0,108650.0,0.78222404]
[1756552026537,0.470335,108660.0,108650.0,0.80012133]
[1756552035563,0.29699411,108670.0,108660.0,0.18406037]
[1756552035771,0.29699411,108670.0,108660.0,0.43004038]
[1756552036002,0.29897411,108670.0,108660.0,0.43502038]
[1756552036173,0.29897411,108670.0,108660.0,0.46268638]
[1756552036801,0.29897411,108670.0,108660.0,0.46277431]
[1756552039683,0.50831154,108680.0,108670.0,0.20498225]
[1756552039877,0.80728565,108680.0,108670.0,0.29796226]
[1756552040923,0.80728565,108680.0,108670.0,0.11391883]
[1756552041131,0.80728565,108680.0,108670.0,0.11621937]
[1756552041343,0.80828565,108680.0,108670.0,0.11621937]
[1756552041540,0.80928565,108680.0,108670.0,0.14388537]
[1756552043161,0.21529743,108680.0,108670.0,0.14388537]
[1756552043367,0.80928565,108680.0,108670.0,0.14388537]
[1756552045797,0.80928565,108680.0,108670.0,0.3279288]
[1756552046018,0.80928565,108680.0,108670.0,0.32562826]
[1756552046700,0.80928565,108680.0,108670.0,0.14158483]
[1756552046912,0.80928565,108680.0,108670.0,0.14388537]
[1756552047775,1.06326655,108680.0,108670.0,0.14388537]
[1756552048347,0.46927833,108680.0,108670.0,0.14388537]
[1756552048541,1.06326655,108680.0,108670.0,0.14388537]
[1756552049386,0.46927833,108680.0,108670.0,0.14388537]
[1756552049759,1.06326655,108680.0,108670.0,0.3279288]
[1756552049950,1.06326655,108680.0,108670.0,0.32562826]
[1756552050910,0.46927833,108680.0,108670.0,0.32562826]
[1756552051129,1.06326655,108680.0,108670.0,0.32562826]
[1756552051333,1.06326655,108680.0,108670.0,0.32881826]
[1756552055927,0.46927833,108680.0,108670.0,0.32881826]
[1756552056152,1.06326655,108680.0,108670.0,0.32881826]
[1756552058225,1.06326655,108680.0,108670.0,0.33083826]
[1756552058430,1.03597856,108680.0,108670.0,0.33083826]
[1756552058873,1.06281242,108680.0,108670.0,0.33083826]
[1756552064984,1.06281242,108680.0,108670.0,0.47862826]
[1756552067832,1.06281242,108680.0,108670.0,0.45096226]
[1756552069567,1.06281242,108680.0,108670.0,0.45419226]
[1756552069918,1.06281242,108680.0,108670.0,0.45622226]
[1756552070988,1.06281242,108680.0,108670.0,0.45092226]
[1756552071692,1.06181242,108680.0,108670.0,0.45092226]
[1756552071849,1.06181242,108680.0,108670.0,0.45295226]
[1756552072071,1.06081242,108680.0,108670.0,0.52973482]
[1756552072267,1.06081242,108680.0,108670.0,0.45618226]
[1756552080285,1.06081242,108680.0,108670.0,0.48384726]
[1756552080505,1.06081242,108680.0,108670.0,0.29777383]
[1756552081735,1.06081242,108680.0,108670.0,0.29454383]
[1756552082661,1.04317988,108680.0,108670.0,0.47858726]
[1756552082807,1.04317988,108680.0,108670.0,0.48181726]
[1756552083439,1.04317988,108680.0,108670.0,0.47858726]
[1756552084848,1.04317988,108680.0,108670.0,0.48181726]
[1756552085368,1.04317988,108680.0,108670.0,0.55751982]
[1756552085589,0.84796912,108680.0,108670.0,0.55751982]
[1756552086442,0.86387525,108680.0,108670.0,0.55751982]
[1756552088557,0.26988703,108680.0,108670.0,0.55751982]
[1756552088975,0.86387525,108680.0,108670.0,0.55751982]
[1756552089781,0.86387525,108680.0,108670.0,0.48384726]
[1756552090621,0.26988703,108680.0,108670.0,0.5255389]
[1756552090793,0.86387525,108680.0,108670.0,0.5255389]
[1756552092890,0.26988703,108680.0,108670.0,0.5255389]
[1756552093101,0.86387525,108680.0,108670.0,0.5255389]
[1756552094516,0.86387525,108680.0,108670.0,0.60358362]
[1756552095440,0.86387525,108680.0,108670.0,0.5255389]
[1756552098044,0.84796912,108680.0,108670.0,0.5255389]
[1756552101000,0.84768415,108680.0,108670.0,0.5255389]
[1756552101244,0.86401073,108680.0,108670.0,0.5255389]
[1756552101459,1.04803722,108680.0,108670.0,0.3725789]
[1756552101677,1.05001722,108680.0,108670.0,0.18853547]
[1756552101901,1.05001722,108680.0,108670.0,0.34149547]
[1756552103699,1.05001722,108680.0,108670.0,0.58517928]
[1756552103914,1.04803722,108680.0,108670.0,0.58517928]
[1756552104130,1.05001722,108680.0,108670.0,0.5255389]
[1756552104348,1.05001722,108680.0,108670.0,0.5256589]
[1756552107257,1.05001722,108680.0,108670.0,0.3725789]
[1756552107464,1.05001722,108680.0,108670.0,0.5256189]
[1756552113846,1.04803722,108680.0,108670.0,0.5256189]
[1756552116192,0.454049,108680.0,108670.0,0.5256189]
[1756552116343,1.04803722,108680.0,108670.0,0.60367162]
[1756552116554,1.04803722,108680.0,108670.0,0.5256189]
[1756552119881,0.86401073,108680.0,108670.0,0.5256189]
[1756552126065,0.27002251,108680.0,108670.0,0.5256189]
[1756552126255,0.86401073,108680.0,108670.0,0.5256189]
[1756552128128,0.84768415,108680.0,108670.0,0.5256189]
[1756552130679,0.87655771,108680.0,108670.0,0.5256189]
[1756552132550,0.87655771,108680.0,108670.0,0.5255389]
[1756552134813,0.84768415,108680.0,108670.0,0.5255389]
[1756552137523,0.87579727,108680.0,108670.0,0.5255389]
[1756552138135,0.84768415,108680.0,108670.0,0.5255389]
[1756552142277,0.84768415,108680.0,108670.0,0.3725789]
[1756552142476,0.84768415,108680.0,108670.0,0.5255389]
[1756552142477,0.84964415,108680.0,108670.0,0.5255389]
[1756552142886,0.25369593,108680.0,108670.0,0.60358362]
[1756552143093,0.84768415,108680.0,108670.0,0.5255389]
[1756552143782,0.84768415,108680.0,108670.0,0.5275389]
[1756552143962,0.84768415,108680.0,108670.0,0.5285389]
[1756552152535,0.84768415,108680.0,108670.0,0.3755789]
[1756552152536,1.03367064,108680.0,108670.0,0.3755789]
[1756552152733,1.03367064,108680.0,108670.0,0.5285389]
[1756552155482,0.78403954,108680.0,108670.0,0.5285389]
[1756552160284,0.60001305,108680.0,108670.0,0.5285389]
[1756552160486,0.59805305,108680.0,108670.0,0.5285389]
[1756552162914,0.59805305,108680.0,108670.0,0.60688362]
[1756552163714,0.59805305,108680.0,108670.0,0.5285389]
[1756552165425,0.59805305,108680.0,108670.0,0.5469889]
[1756552165638,0.59805305,108680.0,108670.0,0.5285389]
[1756552167066,0.59782301,108680.0,108670.0,0.5285389]
[1756552181150,0.00383479,108680.0,108670.0,0.5285389]
[1756552181348,0.00383479,108680.0,108670.0,0.90387773]
[1756552181576,0.00383479,108680.0,108670.0,0.60688362]
[1756552181735,0.3008289,108680.0,108670.0,0.60688362]
[1756552182346,0.3008289,108680.0,108670.0,0.60588362]
[1756552182551,0.3008289,108680.0,108670.0,0.60688362]
[1756552182905,0.3008289,108680.0,108670.0,0.61088362]
[1756552183915,0.00383479,108680.0,108670.0,0.61088362]
[1756552184324,0.00383479,108680.0,108670.0,0.90787773]
[1756552184940,0.00383479,108680.0,108670.0,0.95787773]
[1756552187903,0.00383479,108680.0,108670.0,1.00787773]
[1756552189584,0.00383479,108680.0,108670.0,0.95787773]
[1756552190172,0.00383479,108680.0,108670.0,1.00979773]
[1756552190992,0.00383479,108680.0,108670.0,0.71276362]
[1756552191241,0.00383479,108680.0,108670.0,1.00975773]
[1756552191569,0.00383479,108680.0,108670.0,0.95975773]
[1756552191772,0.00383479,108680.0,108670.0,0.71276362]